[Event "Championnat d'Europe de Blitz"]
[Date "2024.12.09"]
[White "Zajic, Milan"]
[Black "Yuste Valenzuela, Alejandro"]
[WhiteElo "2392"]
[BlackElo "2150"]
[Round "4.41"]
[Result "1-0"]
[TimeControl "180+2"]

1. e4 {[%clk 00:03:03]} e5 {[%emt 00:00:02] [%clk 00:03:03]} 2. Nf3 {[%emt
00:00:01] [%clk 00:03:04]} Nc6 {[%clk 00:03:04]} 3. Bb5 {[%emt 00:00:02] [%clk
00:03:05]} d6 {[%clk 00:03:04]} 4. d4 {[%emt 00:00:04] [%clk 00:03:03]} Bd7
{[%emt 00:00:01] [%clk 00:03:05]} 5. Nc3 {[%emt 00:00:05] [%clk 00:03:00]} g6
{[%emt 00:00:03] [%clk 00:03:04]} 6. Bxc6 {[%emt 00:00:14] [%clk 00:02:48]} Bxc6
{[%emt 00:00:40] [%clk 00:02:26]} 7. dxe5 {[%emt 00:00:01] [%clk 00:02:48]} dxe5
{[%emt 00:00:06] [%clk 00:02:23]} 8. Qxd8+ {[%emt 00:00:01] [%clk 00:02:49]}
Rxd8 {[%emt 00:00:02] [%clk 00:02:24]} 9. Nxe5 {[%emt 00:00:01] [%clk 00:02:49]}
Bg7 {[%emt 00:00:19] [%clk 00:02:07]} 10. Nxc6 {[%emt 00:00:04] [%clk 00:02:46]}
bxc6 {[%emt 00:00:02] [%clk 00:02:08]} 11. Bd2 {[%emt 00:00:11] [%clk 00:02:38]}
Nf6 {[%emt 00:00:05] [%clk 00:02:05]} 12. f3 {[%emt 00:00:04] [%clk 00:02:36]}
O-O {[%emt 00:00:04] [%clk 00:02:03]} 13. O-O-O {[%emt 00:00:03] [%clk
00:02:35]} Nd7 {[%emt 00:00:03] [%clk 00:02:02]} 14. Bg5 {[%emt 00:00:18] [%clk
00:02:18]} f6 {[%emt 00:00:06] [%clk 00:01:59]} 15. Bf4 {[%emt 00:00:01] [%clk
00:02:19]} Ne5 {[%emt 00:00:05] [%clk 00:01:56]} 16. Rxd8 {[%emt 00:00:06] [%clk
00:02:15]} Rxd8 {[%emt 00:00:01] [%clk 00:01:57]} 17. Rd1 {[%emt 00:00:03] [%clk
00:02:14]} Rd6 {[%emt 00:00:11] [%clk 00:01:48]} 18. Bxe5 {[%emt 00:00:14] [%clk
00:02:02]} fxe5 {[%emt 00:00:01] [%clk 00:01:49]} 19. Rd3 {[%emt 00:00:04] [%clk
00:02:00]} Kf7 {[%emt 00:00:13] [%clk 00:01:38]} 20. Kd1 {[%emt 00:00:12] [%clk
00:01:50]} h5 {[%emt 00:00:09] [%clk 00:01:31]} 21. Ke2 {[%emt 00:00:10] [%clk
00:01:42]} Bh6 {[%emt 00:00:08] [%clk 00:01:25]} 22. b3 {[%emt 00:00:12] [%clk
00:01:33]} Bf4 {[%emt 00:00:09] [%clk 00:01:18]} 23. g3 {[%emt 00:00:17] [%clk
00:01:18]} Bh6 {[%emt 00:00:01] [%clk 00:01:19]} 24. Nd1 {[%emt 00:00:07] [%clk
00:01:13]} h4 {[%emt 00:00:09] [%clk 00:01:12]} 25. Ne3 {[%emt 00:00:01] [%clk
00:01:13]} hxg3 {[%emt 00:00:04] [%clk 00:01:10]} 26. hxg3 {[%emt 00:00:02]
[%clk 00:01:14]} Ke6 {[%emt 00:00:14] [%clk 00:00:58]} 27. Nc4 {[%emt 00:00:14]
[%clk 00:01:01]} Rxd3 {[%emt 00:00:03] [%clk 00:00:57]} 28. Kxd3 {[%emt
00:00:05] [%clk 00:00:59]} Bg5 {[%emt 00:00:13] [%clk 00:00:46]} 29. Nb2 {[%emt
00:00:37] [%clk 00:00:24]} Bc1 {[%emt 00:00:09] [%clk 00:00:40]} 30. Nd1 {[%emt
00:00:02] [%clk 00:00:23]} Bg5 {[%emt 00:00:05] [%clk 00:00:37]} 31. Nf2 {[%emt
00:00:05] [%clk 00:00:20]} Bh6 {[%emt 00:00:05] [%clk 00:00:34]} 32. Kc4 {[%emt
00:00:01] [%clk 00:00:21]} Kd6 {[%emt 00:00:04] [%clk 00:00:31]} 33. Nd3 {[%emt
00:00:04] [%clk 00:00:19]} Be3 {[%emt 00:00:05] [%clk 00:00:29]} 34. f4 {[%emt
00:00:10] [%clk 00:00:12]} exf4 {[%emt 00:00:04] [%clk 00:00:26]} 35. gxf4
{[%emt 00:00:02] [%clk 00:00:12]} g5 {[%emt 00:00:05] [%clk 00:00:23]} 36. fxg5
{[%emt 00:00:02] [%clk 00:00:12]} Bxg5 {[%emt 00:00:01] [%clk 00:00:24]} 37. e5+
{[%emt 00:00:01] [%clk 00:00:13]} Kd7 {[%emt 00:00:05] [%clk 00:00:20]} 38. Nc5+
{[%emt 00:00:02] [%clk 00:00:12]} Ke7 {[%clk 00:00:22]} 39. Kd4 {[%emt 00:00:05]
[%clk 00:00:10]} Bh4 {[%emt 00:00:05] [%clk 00:00:18]} 40. Ke4 {[%emt 00:00:02]
[%clk 00:00:10]} Bf2 {[%emt 00:00:05] [%clk 00:00:14]} 41. Nd3 {[%emt 00:00:01]
[%clk 00:00:11]} Bg1 {[%emt 00:00:03] [%clk 00:00:14]} 42. Kf5 {[%clk 00:00:12]}
Be3 {[%emt 00:00:02] [%clk 00:00:13]} 43. Nf4 {[%emt 00:00:01] [%clk 00:00:12]}
Bc5 {[%emt 00:00:05] [%clk 00:00:11]} 44. Ng6+ {[%emt 00:00:01] [%clk 00:00:13]}
Kf7 {[%emt 00:00:03] [%clk 00:00:10]} 45. e6+ {[%emt 00:00:01] [%clk 00:00:14]}
Ke8 {[%clk 00:00:11]} 46. Ne5 {[%clk 00:00:15]} Bd6 {[%emt 00:00:05] [%clk
00:00:08]} 47. Nxc6 {[%emt 00:00:01] [%clk 00:00:15]} Bc5 {[%emt 00:00:02] [%clk
00:00:08]} 48. Ke4 {[%clk 00:00:16]} Bb6 {[%emt 00:00:03] [%clk 00:00:08]} 49.
Kd5 {[%emt 00:00:01] [%clk 00:00:17]} Bg1 {[%emt 00:00:02] [%clk 00:00:08]} 50.
Kc4 {[%clk 00:00:18]} Bf2 {[%emt 00:00:02] [%clk 00:00:07]} 51. Kb5 {[%emt
00:00:01] [%clk 00:00:19]} 1-0

[Site "Europe Echecs"]

[Event "Championnat d'Europe de Blitz"]
[Date "2024.12.09"]
[White "Costachi, Mihnea"]
[Black "Sirigos, Nikolaos"]
[WhiteElo "2464"]
[BlackElo "2044"]
[Round "4.42"]
[Result "1-0"]
[TimeControl "180+2"]

1. d4 {[%clk 00:03:03]} Nf6 {[%emt 00:00:02] [%clk 00:03:03]} 2. c4 {[%emt
00:00:01] [%clk 00:03:04]} d6 {[%emt 00:00:03] [%clk 00:03:03]} 3. Nc3 {[%clk
00:03:04]} Nbd7 {[%clk 00:03:05]} 4. e4 {[%emt 00:00:02] [%clk 00:03:04]} e5
{[%clk 00:03:06]} 5. Nf3 {[%emt 00:00:03] [%clk 00:03:02]} g6 {[%emt 00:00:02]
[%clk 00:03:06]} 6. h3 {[%emt 00:00:10]} Bg7 {[%clk 00:03:06]} 7. Be3 {[%emt
00:00:03] [%clk 00:02:56]} O-O {[%emt 00:00:04] [%clk 00:03:04]} 8. d5 {[%emt
00:00:06] [%clk 00:02:52]} Nc5 {[%emt 00:00:15] [%clk 00:02:51]} 9. Qc2 {[%emt
00:00:10] [%clk 00:02:43]} a5 {[%emt 00:00:03] [%clk 00:02:51]} 10. g4 {[%emt
00:00:01] [%clk 00:02:44]} c6 {[%emt 00:00:25] [%clk 00:02:28]} 11. Nd2 {[%emt
00:00:14] [%clk 00:02:32]} cxd5 {[%emt 00:00:05] [%clk 00:02:25]} 12. cxd5
{[%emt 00:00:03] [%clk 00:02:30]} Bd7 {[%emt 00:00:02] [%clk 00:02:26]} 13. Nc4
{[%emt 00:00:07] [%clk 00:02:24]} Be8 {[%emt 00:00:30] [%clk 00:01:57]} 14. a4
{[%emt 00:00:16] [%clk 00:02:10]} Rc8 {[%emt 00:00:01] [%clk 00:01:58]} 15. Be2
{[%emt 00:00:08] [%clk 00:02:04]} Qc7 {[%emt 00:00:25] [%clk 00:01:35]} 16. O-O
{[%emt 00:00:04] [%clk 00:02:02]} Nfd7 {[%emt 00:00:01] [%clk 00:01:36]} 17. Nb5
{[%emt 00:00:04] [%clk 00:02:00]} Qd8 {[%emt 00:00:18] [%clk 00:01:20]} 18.
Ncxd6 {[%emt 00:00:02] [%clk 00:02:00]} b6 {[%emt 00:00:27] [%clk 00:00:55]} 19.
Nxc8 {[%emt 00:00:06] [%clk 00:01:56]} Qxc8 {[%clk 00:00:56]} 20. Bf3 {[%emt
00:00:36] [%clk 00:01:22]} f5 {[%emt 00:00:07] [%clk 00:00:51]} 21. exf5 {[%emt
00:00:09] [%clk 00:01:14]} gxf5 {[%emt 00:00:02] [%clk 00:00:52]} 22. Nd6 {[%emt
00:00:05] [%clk 00:01:11]} Qc7 {[%emt 00:00:04] [%clk 00:00:50]} 23. Nxf5 {[%emt
00:00:07] [%clk 00:01:06]} Bg6 {[%clk 00:00:51]} 24. Ne7+ {[%emt 00:00:02] [%clk
00:01:07]} Kh8 {[%emt 00:00:02] [%clk 00:00:51]} 25. Nxg6+ {[%emt 00:00:02]
[%clk 00:01:06]} hxg6 {[%clk 00:00:52]} 26. Bg2 {[%emt 00:00:06] [%clk
00:01:03]} Qd6 {[%emt 00:00:10] [%clk 00:00:44]} 27. Rad1 {[%emt 00:00:11] [%clk
00:00:54]} e4 {[%emt 00:00:01] [%clk 00:00:44]} 28. Bd4 {[%emt 00:00:07] [%clk
00:00:49]} Bxd4 {[%emt 00:00:07] [%clk 00:00:40]} 29. Rxd4 {[%emt 00:00:01]
[%clk 00:00:50]} Ne5 {[%emt 00:00:01] [%clk 00:00:41]} 30. Rxe4 {[%emt 00:00:11]
[%clk 00:00:41]} Nxe4 {[%emt 00:00:08] [%clk 00:00:35]} 31. Qxe4 {[%emt
00:00:01] [%clk 00:00:41]} g5 {[%emt 00:00:04] [%clk 00:00:33]} 32. Re1 {[%emt
00:00:04] [%clk 00:00:39]} Re8 {[%emt 00:00:19] [%clk 00:00:17]} 33. Kh1 {[%emt
00:00:08] [%clk 00:00:32]} Kg7 {[%emt 00:00:01] [%clk 00:00:18]} 34. Qf5 {[%emt
00:00:02] [%clk 00:00:32]} Qf6 {[%emt 00:00:08] [%clk 00:00:12]} 35. Qxf6+
{[%emt 00:00:01] [%clk 00:00:32]} Kxf6 {[%clk 00:00:13]} 36. Re3 {[%emt
00:00:07] [%clk 00:00:27]} Rd8 {[%emt 00:00:03] [%clk 00:00:12]} 37. Rc3 {[%emt
00:00:03] [%clk 00:00:26]} Rd6 {[%emt 00:00:02] [%clk 00:00:13]} 38. Kh2 {[%emt
00:00:01] [%clk 00:00:26]} Ng6 {[%emt 00:00:04] [%clk 00:00:11]} 39. Rc6 {[%emt
00:00:03] [%clk 00:00:25]} Ke5 {[%emt 00:00:02] [%clk 00:00:12]} 40. Rc8 {[%emt
00:00:07] [%clk 00:00:19]} Rf6 {[%emt 00:00:03] [%clk 00:00:12]} 41. Kg3 {[%emt
00:00:03] [%clk 00:00:18]} Nf4 {[%emt 00:00:03] [%clk 00:00:11]} 42. Bf3 {[%emt
00:00:07] [%clk 00:00:13]} Nxh3 {[%emt 00:00:04] [%clk 00:00:09]} 43. Re8+
{[%emt 00:00:02] [%clk 00:00:13]} Kd6 {[%clk 00:00:10]} 44. Rd8+ {[%emt
00:00:07] [%clk 00:00:08]} Kc5 {[%emt 00:00:02] [%clk 00:00:09]} 45. Rc8+ {[%emt
00:00:02] [%clk 00:00:09]} Kd4 {[%emt 00:00:02] [%clk 00:00:08]} 46. Rc6 {[%emt
00:00:03] [%clk 00:00:08]} Rf8 {[%emt 00:00:06] [%clk 00:00:05]} 47. d6 {[%emt
00:00:02] [%clk 00:00:08]} Ng1 {[%emt 00:00:02] [%clk 00:00:05]} 48. Rc3 {[%emt
00:00:06] [%clk 00:00:04]} Ke5 {[%emt 00:00:04] [%clk 00:00:03]} 49. Re3+ {[%emt
00:00:01] [%clk 00:00:05]} Kxd6 {[%clk 00:00:04]} 50. Bg2 {[%emt 00:00:03] [%clk
00:00:04]} Rc8 {[%emt 00:00:02] [%clk 00:00:04]} 51. Re1 {[%emt 00:00:02] [%clk
00:00:04]} Rc2 {[%emt 00:00:02] [%clk 00:00:04]} 52. Rxg1 {[%clk 00:00:05]} Rxb2
{[%clk 00:00:05]} 53. Rd1+ {[%clk 00:00:06]} Ke5 {[%clk 00:00:07]} 54. Rd5+
{[%clk 00:00:07]} Ke6 {[%clk 00:00:08]} 55. Rxg5 {[%emt 00:00:01] [%clk
00:00:08]} Rb3+ {[%clk 00:00:09]} 56. Kh4 {[%emt 00:00:03] [%clk 00:00:08]} Rb4
{[%clk 00:00:11]} 57. Bc6 {[%emt 00:00:01] [%clk 00:00:08]} Rc4 {[%emt 00:00:01]
[%clk 00:00:11]} 58. Bd5+ {[%emt 00:00:01] [%clk 00:00:09]} 1-0

[Site "Europe Echecs"]

[Event "Championnat d'Europe de Blitz"]
[Date "2024.12.09"]
[White "Ochedzan, Tymon"]
[Black "Dragnev, Valentin"]
[WhiteElo "2247"]
[BlackElo "2563"]
[Round "4.43"]
[Result "0-1"]
[TimeControl "180+2"]

1. e4 {[%clk 00:03:04]} c6 {[%emt 00:00:01] [%clk 00:03:04]} 2. d4 {[%emt
00:00:03] [%clk 00:03:04]} d5 {[%clk 00:03:05]} 3. f3 {[%clk 00:03:05]} e6
{[%emt 00:00:01] [%clk 00:03:05]} 4. Nc3 {[%emt 00:00:03] [%clk 00:03:04]} Bb4
{[%clk 00:03:07]} 5. Bd2 {[%emt 00:00:02] [%clk 00:03:04]} Ne7 {[%emt 00:00:06]
[%clk 00:03:02]} 6. h4 {[%emt 00:00:02] [%clk 00:03:04]} b6 {[%emt 00:00:05]
[%clk 00:03:00]} 7. h5 {[%clk 00:03:04]} h6 {[%emt 00:00:03] [%clk 00:02:59]} 8.
a3 {[%emt 00:00:08] [%clk 00:02:59]} Bxc3 {[%emt 00:00:02] [%clk 00:02:58]} 9.
Bxc3 {[%emt 00:00:02] [%clk 00:02:59]} Ba6 {[%emt 00:00:02] [%clk 00:02:58]} 10.
Bxa6 {[%emt 00:00:06] [%clk 00:02:55]} Nxa6 {[%clk 00:02:59]} 11. Qe2 {[%emt
00:00:10] [%clk 00:02:47]} Nc7 {[%emt 00:00:02] [%clk 00:02:59]} 12. a4 {[%emt
00:00:33] [%clk 00:02:16]} Qd7 {[%emt 00:00:21] [%clk 00:02:40]} 13. Nh3 {[%emt
00:00:03] [%clk 00:02:14]} c5 {[%emt 00:00:14] [%clk 00:02:28]} 14. Rd1 {[%emt
00:00:23] [%clk 00:01:53]} c4 {[%emt 00:00:02] [%clk 00:02:28]} 15. b3 {[%emt
00:00:07] [%clk 00:01:49]} cxb3 {[%emt 00:00:08] [%clk 00:02:22]} 16. cxb3
{[%emt 00:00:01] [%clk 00:01:49]} Rc8 {[%emt 00:00:04] [%clk 00:02:20]} 17. O-O
{[%emt 00:00:06] [%clk 00:01:44]} O-O {[%emt 00:00:03] [%clk 00:02:20]} 18. Bb4
{[%emt 00:00:04] [%clk 00:01:42]} Rfd8 {[%emt 00:00:07] [%clk 00:02:15]} 19. Nf4
{[%emt 00:00:06] [%clk 00:01:38]} Nc6 {[%emt 00:00:05] [%clk 00:02:12]} 20. Bc3
{[%emt 00:00:04] [%clk 00:01:36]} Qe7 {[%emt 00:00:11] [%clk 00:02:03]} 21. e5
{[%emt 00:00:21] [%clk 00:01:16]} Qg5 {[%emt 00:00:07] [%clk 00:01:58]} 22. Qe3
{[%emt 00:00:05] [%clk 00:01:14]} Ne7 {[%emt 00:00:04] [%clk 00:01:56]} 23. Bd2
{[%emt 00:00:06] [%clk 00:01:10]} Qf5 {[%emt 00:00:12] [%clk 00:01:46]} 24. Rc1
{[%emt 00:00:03] [%clk 00:01:09]} Ne8 {[%emt 00:00:23] [%clk 00:01:25]} 25. g4
{[%emt 00:00:02] [%clk 00:01:10]} Qh7 {[%emt 00:00:07] [%clk 00:01:19]} 26. Bb4
{[%emt 00:00:04] [%clk 00:01:08]} Nc6 {[%emt 00:00:07] [%clk 00:01:15]} 27. Ba3
{[%clk 00:01:09]} Na5 {[%emt 00:00:06] [%clk 00:01:11]} 28. Bb4 {[%emt 00:00:06]
[%clk 00:01:05]} Nc6 {[%emt 00:00:31] [%clk 00:00:41]} 29. Ba3 {[%emt 00:00:01]
[%clk 00:01:06]} Na5 {[%emt 00:00:04] [%clk 00:00:39]} 30. Rxc8 {[%emt 00:00:06]
[%clk 00:01:02]} Rxc8 {[%emt 00:00:01] [%clk 00:00:40]} 31. Rc1 {[%clk
00:01:03]} Rc2 {[%emt 00:00:09] [%clk 00:00:33]} 32. Ng6 {[%emt 00:00:21] [%clk
00:00:45]} Rxc1+ {[%emt 00:00:16] [%clk 00:00:18]} 33. Qxc1 {[%emt 00:00:01]
[%clk 00:00:46]} fxg6 {[%clk 00:00:19]} 34. Qc8 {[%emt 00:00:02] [%clk
00:00:46]} Kh8 {[%emt 00:00:04] [%clk 00:00:17]} 35. Qxe8+ {[%emt 00:00:04]
[%clk 00:00:44]} Qg8 {[%clk 00:00:19]} 36. Qxg6 {[%emt 00:00:07] [%clk
00:00:39]} Nxb3 {[%clk 00:00:20]} 37. g5 {[%emt 00:00:13] [%clk 00:00:29]} Nxd4
{[%emt 00:00:01] [%clk 00:00:20]} 38. Kf2 {[%emt 00:00:20] [%clk 00:00:11]} Qc8
{[%emt 00:00:01] [%clk 00:00:20]} 39. gxh6 {[%emt 00:00:05] [%clk 00:00:09]}
Qc2+ {[%emt 00:00:02] [%clk 00:00:21]} 40. Qxc2 {[%clk 00:00:10]} Nxc2 {[%clk
00:00:22]} 41. hxg7+ {[%emt 00:00:02] [%clk 00:00:10]} Kxg7 {[%emt 00:00:01]
[%clk 00:00:23]} 42. Kg3 {[%emt 00:00:05] [%clk 00:00:07]} Nxa3 {[%emt 00:00:01]
[%clk 00:00:24]} 0-1

[Site "Europe Echecs"]

[Event "Championnat d'Europe de Blitz"]
[Date "2024.12.09"]
[White "Boyer, Mahel"]
[Black "Mueller, Magnus"]
[WhiteElo "2526"]
[BlackElo "2166"]
[Round "4.44"]
[Result "1-0"]
[TimeControl "180+2"]

1. Nf3 {[%emt 00:00:02] [%clk 00:03:02]} Nf6 {[%emt 00:00:03] [%clk 00:03:03]}
2. c4 {[%clk 00:03:03]} e6 {[%emt 00:00:03] [%clk 00:03:02]} 3. b3 {[%emt
00:00:04] [%clk 00:03:00]} d5 {[%emt 00:00:15] [%clk 00:02:50]} 4. Bb2 {[%clk
00:03:01]} c5 {[%emt 00:00:01] [%clk 00:02:51]} 5. cxd5 {[%emt 00:00:02] [%clk
00:03:01]} exd5 {[%emt 00:00:01] [%clk 00:02:52]} 6. g3 {[%clk 00:03:02]} Nc6
{[%emt 00:00:05] [%clk 00:02:49]} 7. Bg2 {[%clk 00:03:03]} Bd6 {[%emt 00:00:20]
[%clk 00:02:31]} 8. O-O {[%emt 00:00:02] [%clk 00:03:04]} O-O {[%emt 00:00:01]
[%clk 00:02:31]} 9. d4 {[%emt 00:00:02] [%clk 00:03:04]} Ne4 {[%emt 00:00:42]
[%clk 00:01:52]} 10. Nc3 {[%clk 00:03:04]} Be6 {[%emt 00:00:42] [%clk 00:01:12]}
11. Rc1 {[%emt 00:00:10] [%clk 00:02:56]} Qe7 {[%emt 00:00:47] [%clk 00:00:26]}
12. dxc5 {[%emt 00:00:19] [%clk 00:02:39]} Bxc5 {[%emt 00:00:01] [%clk
00:00:27]} 13. Nxd5 {[%emt 00:00:15] [%clk 00:02:26]} Bxd5 {[%emt 00:00:02]
[%clk 00:00:27]} 14. Qxd5 {[%clk 00:02:27]} Rfd8 {[%emt 00:00:03] [%clk
00:00:26]} 15. Qf5 {[%emt 00:00:03] [%clk 00:02:26]} Bb6 {[%emt 00:00:13] [%clk
00:00:15]} 16. e3 {[%emt 00:00:03] [%clk 00:02:25]} Nxf2 {[%emt 00:00:07] [%clk
00:00:10]} 17. Rxf2 {[%emt 00:00:03] [%clk 00:02:25]} Bxe3 {[%clk 00:00:11]} 18.
Rcf1 {[%clk 00:02:25]} Qd7 {[%emt 00:00:10] [%clk 00:00:04]} 19. Qh5 {[%emt
00:00:10] [%clk 00:02:16]} Bxf2+ {[%emt 00:00:03] [%clk 00:00:03]} 20. Rxf2
{[%clk 00:02:17]} Qd1+ {[%emt 00:00:01] [%clk 00:00:04]} 21. Rf1 {[%clk
00:02:18]} Qe2 {[%emt 00:00:01] [%clk 00:00:05]} 22. Qg5 {[%emt 00:00:04] [%clk
00:02:16]} Qxb2 {[%emt 00:00:02] [%clk 00:00:06]} 23. Nh4 {[%clk 00:02:17]} Qd4+
{[%emt 00:00:01] [%clk 00:00:06]} 24. Kh1 {[%clk 00:02:18]} Qe5 {[%emt 00:00:03]
[%clk 00:00:06]} 25. Nf5 {[%clk 00:02:19]} Rd6 {[%emt 00:00:05] [%clk 00:00:03]}
26. Bxc6 {[%emt 00:00:02] [%clk 00:02:19]} bxc6 {[%emt 00:00:02] [%clk
00:00:03]} 27. Ne7+ {[%emt 00:00:03] [%clk 00:02:17]} Qxe7 {[%emt 00:00:04]
[%clk 00:00:00]} 1-0

[Site "Europe Echecs"]

[Event "Championnat d'Europe de Blitz"]
[Date "2024.12.09"]
[White "Baskin, Robert"]
[Black "Mihov, Filip"]
[WhiteElo "2442"]
[BlackElo "2245"]
[Round "4.45"]
[Result "1-0"]
[TimeControl "180+2"]

1. c4 {[%emt 00:00:05] [%clk 00:03:02]} e6 {[%clk 00:03:02]} 2. Nf3 {[%emt
00:00:01] [%clk 00:03:02]} d5 {[%emt 00:00:02] [%clk 00:03:03]} 3. g3 {[%emt
00:00:04] [%clk 00:03:00]} Nf6 {[%emt 00:00:06] [%clk 00:02:58]} 4. Bg2 {[%emt
00:00:02] [%clk 00:03:01]} Be7 {[%emt 00:00:08] [%clk 00:02:51]} 5. O-O {[%emt
00:00:02] [%clk 00:03:01]} O-O {[%emt 00:00:02] [%clk 00:02:52]} 6. b3 {[%emt
00:00:02] [%clk 00:03:01]} c5 {[%emt 00:00:07] [%clk 00:02:47]} 7. cxd5 {[%emt
00:00:02] [%clk 00:03:02]} Nxd5 {[%emt 00:00:01] [%clk 00:02:48]} 8. Bb2 {[%clk
00:03:03]} Nc6 {[%emt 00:00:02] [%clk 00:02:49]} 9. Nc3 {[%emt 00:00:10] [%clk
00:02:55]} Bf6 {[%emt 00:00:07] [%clk 00:02:44]} 10. Rc1 {[%emt 00:00:06] [%clk
00:02:51]} Nxc3 {[%emt 00:00:19] [%clk 00:02:26]} 11. Bxc3 {[%emt 00:00:07]
[%clk 00:02:46]} Nd4 {[%emt 00:00:15] [%clk 00:02:14]} 12. Nxd4 {[%emt 00:00:09]
[%clk 00:02:39]} cxd4 {[%emt 00:00:05] [%clk 00:02:11]} 13. Bb4 {[%clk
00:02:40]} Re8 {[%clk 00:02:13]} 14. Qc2 {[%emt 00:00:13] [%clk 00:02:29]} Be7
{[%emt 00:00:53] [%clk 00:01:22]} 15. Bxe7 {[%emt 00:00:09] [%clk 00:02:22]}
Rxe7 {[%emt 00:00:15] [%clk 00:01:10]} 16. f4 {[%emt 00:00:15] [%clk 00:02:08]}
Rb8 {[%emt 00:00:15] [%clk 00:00:58]} 17. Qc5 {[%emt 00:00:36] [%clk 00:01:34]}
b6 {[%emt 00:00:04] [%clk 00:00:57]} 18. Qe5 {[%emt 00:00:01] [%clk 00:01:35]}
Bb7 {[%emt 00:00:11] [%clk 00:00:46]} 19. Bxb7 {[%emt 00:00:07] [%clk 00:01:31]}
Rexb7 {[%emt 00:00:15] [%clk 00:00:33]} 20. Rc4 {[%emt 00:00:01] [%clk
00:01:32]} Rd7 {[%emt 00:00:13] [%clk 00:00:22]} 21. Rfc1 {[%clk 00:01:33]} Qe7
{[%emt 00:00:12] [%clk 00:00:13]} 22. Qxb8+ {[%clk 00:01:34]} 1-0

[Site "Europe Echecs"]

[Event "Championnat d'Europe de Blitz"]
[Date "2024.12.09"]
[White "Uruci, Besim"]
[Black "Cvitan, Ognjen"]
[WhiteElo "2095"]
[BlackElo "2413"]
[Round "4.46"]
[Result "0-1"]
[TimeControl "180+2"]

1. d4 {[%emt 00:00:04] [%clk 00:03:02]} Nf6 {[%clk 00:03:03]} 2. Nf3 {[%emt
00:00:03] [%clk 00:03:01]} d5 {[%emt 00:00:02] [%clk 00:03:03]} 3. Bf4 {[%emt
00:00:02] [%clk 00:03:01]} c5 {[%emt 00:00:04] [%clk 00:03:00]} 4. e3 {[%emt
00:00:02] [%clk 00:03:02]} Nc6 {[%emt 00:00:01] [%clk 00:03:00]} 5. c3 {[%emt
00:00:03] [%clk 00:03:02]} Qb6 {[%emt 00:00:04] [%clk 00:02:57]} 6. Qb3 {[%emt
00:00:03] [%clk 00:03:02]} c4 {[%clk 00:02:58]} 7. Qc2 {[%emt 00:00:04] [%clk
00:03:00]} Bf5 {[%emt 00:00:04] [%clk 00:02:55]} 8. Qc1 {[%clk 00:03:02]} h6
{[%emt 00:00:02] [%clk 00:02:55]} 9. h3 {[%clk 00:03:03]} e6 {[%emt 00:00:01]
[%clk 00:02:56]} 10. Nbd2 {[%emt 00:00:02] [%clk 00:03:04]} Be7 {[%emt 00:00:01]
[%clk 00:02:56]} 11. Be2 {[%emt 00:00:02] [%clk 00:03:04]} O-O {[%emt 00:00:02]
[%clk 00:02:56]} 12. O-O {[%emt 00:00:02] [%clk 00:03:05]} Rfc8 {[%clk
00:02:57]} 13. Ne5 {[%emt 00:00:05] [%clk 00:03:02]} Qd8 {[%emt 00:00:06] [%clk
00:02:53]} 14. Bd1 {[%emt 00:00:15] [%clk 00:02:50]} Nxe5 {[%emt 00:00:09] [%clk
00:02:44]} 15. Bxe5 {[%emt 00:00:02] [%clk 00:02:50]} b5 {[%emt 00:00:07] [%clk
00:02:40]} 16. Bc2 {[%emt 00:00:02] [%clk 00:02:51]} a5 {[%emt 00:00:06] [%clk
00:02:35]} 17. Bxf6 {[%emt 00:00:05] [%clk 00:02:47]} Bxf6 {[%emt 00:00:02]
[%clk 00:02:36]} 18. Bxf5 {[%emt 00:00:07] [%clk 00:02:42]} exf5 {[%clk
00:02:36]} 19. Qc2 {[%emt 00:00:02] [%clk 00:02:42]} Qd7 {[%emt 00:00:19] [%clk
00:02:19]} 20. f3 {[%emt 00:00:02] [%clk 00:02:43]} Bg5 {[%emt 00:00:02] [%clk
00:02:19]} 21. Rae1 {[%emt 00:00:02] [%clk 00:02:43]} Re8 {[%emt 00:00:01] [%clk
00:02:20]} 22. f4 {[%emt 00:00:07] [%clk 00:02:38]} Bh4 {[%emt 00:00:08] [%clk
00:02:14]} 23. Re2 {[%emt 00:00:10] [%clk 00:02:31]} Be7 {[%emt 00:00:12] [%clk
00:02:03]} 24. Nf3 {[%emt 00:00:02] [%clk 00:02:31]} g6 {[%emt 00:00:03] [%clk
00:02:02]} 25. Ne5 {[%emt 00:00:02] [%clk 00:02:32]} Qe6 {[%clk 00:02:03]} 26.
b3 {[%emt 00:00:11] [%clk 00:02:23]} Kh7 {[%emt 00:00:04] [%clk 00:02:01]} 27.
bxc4 {[%emt 00:00:02] [%clk 00:02:23]} bxc4 {[%emt 00:00:02] [%clk 00:02:02]}
28. Rb1 {[%emt 00:00:03] [%clk 00:02:22]} f6 {[%emt 00:00:06] [%clk 00:01:58]}
29. Nf3 {[%emt 00:00:03] [%clk 00:02:20]} Reb8 {[%clk 00:01:59]} 30. Kf2 {[%emt
00:00:07] [%clk 00:02:15]} Qe4 {[%emt 00:00:14] [%clk 00:01:47]} 31. Rxb8 {[%emt
00:00:35] [%clk 00:01:42]} Rxb8 {[%emt 00:00:01] [%clk 00:01:48]} 32. Qa4 {[%emt
00:00:05] [%clk 00:01:40]} g5 {[%emt 00:00:14] [%clk 00:01:35]} 33. Qxa5 {[%emt
00:00:14] [%clk 00:01:28]} g4 {[%emt 00:00:09] [%clk 00:01:28]} 34. Qc7 {[%emt
00:00:16] [%clk 00:01:13]} Rg8 {[%emt 00:00:26] [%clk 00:01:04]} 35. hxg4 {[%emt
00:00:03] [%clk 00:01:13]} fxg4 {[%emt 00:00:03] [%clk 00:01:03]} 36. Nh4 {[%emt
00:00:06] [%clk 00:01:10]} f5 {[%emt 00:00:25] [%clk 00:00:40]} 37. Nxf5 {[%emt
00:00:05] [%clk 00:01:06]} g3+ {[%emt 00:00:05] [%clk 00:00:37]} 38. Kf1 {[%emt
00:00:02] [%clk 00:01:06]} Qb1+ {[%emt 00:00:14] [%clk 00:00:26]} 39. Re1 {[%emt
00:00:02] [%clk 00:01:06]} Qxf5 {[%emt 00:00:04] [%clk 00:00:24]} 40. Qxe7+
{[%emt 00:00:02] [%clk 00:01:07]} Rg7 {[%clk 00:00:25]} 41. Qe5 {[%emt 00:00:09]
[%clk 00:01:01]} Qd3+ {[%clk 00:00:26]} 42. Kg1 {[%emt 00:00:02] [%clk
00:01:01]} Rb7 {[%emt 00:00:09] [%clk 00:00:19]} 43. Qxd5 {[%emt 00:00:07] [%clk
00:00:56]} Qxe3+ {[%emt 00:00:05] [%clk 00:00:16]} 0-1

[Site "Europe Echecs"]